[Event "European Online Club-ch-E 2021"]
[Site "Online"]
[Date "2021.03.27"]
[Round "7.1"]
[White "Chatalbashev, Boris"]
[Black "Coursaget, Nicolas"]
[Result "1-0"]
[ECO "D11"]
[WhiteElo "2530"]
[BlackElo "2192"]
[Annotator "ChessBase"]
[PlyCount "35"]
[EventDate "2021.03.27"]
[EventType "team-tourn"]
[EventCountry "NET"]
[SourceTitle "playchess.com"]
[Source "ChessBase"]
[SourceQuality "1"]
[TimeControl "900+5"]

1. d4 {[%emt 0:00:00]} d5 {[%emt 0:00:29]} 2. c4 {[%emt 0:00:03]} c6 {[%emt 0:00:03]} 3. Nf3 {[%emt 0:00:03]} Nf6 {[%emt 0:00:04]} 4. g3 {[%emt 0:00:03]} Bf5 {[%emt 0:00:09]} 5. Nc3 {[%emt 0:00:04]} e6 {[%emt 0:00:03]} 6. Nh4 {[%emt 0:00:08]} Bg4 {[%emt 0:00:02]} 7. h3 {[%emt 0:00:05]} Bh5 {[%emt 0:00:02]} 8. Qb3 {[%emt 0:00:06]} Qb6 {[%emt 0:00:05]} 9. c5 {[%emt 0:00:04]} Qxb3 {[%emt 0:00:17]} 10. axb3 {[%emt 0:00:04]} Nbd7 {[%emt 0:00:02]} 11. b4 {[%emt 0:00:33]} e5 {[%emt 0:00:08]} 12. dxe5 {[%emt 0:00:14]} Nxe5 {[%emt 0:00:04]} 13. g4 {[%emt 0:00:12]} Bg6 {[%emt 0:00:02]} 14. f4 {[%emt 0:00:04]} Nexg4 {[%emt 0:01:59]} 15. hxg4 {[%emt 0:00:06]} Nxg4 {[%emt 0:00:02]} 16. f5 {[%emt 0:00:51]} Bh5 {[%emt 0:00:03]} 17. Ng2 {[%emt 0:00:15]} Nf6 {[%emt 0:00:07]} 18. Bg5 {[%emt 0:00:17]} 1-0

[Event "European Online Club-ch-E 2021"]
[Site "Online"]
[Date "2021.03.27"]
[Round "7.2"]
[White "Helie, Marc"]
[Black "Moreno Trujillo, Alejandro"]
[Result "1/2-1/2"]
[ECO "D52"]
[WhiteElo "2083"]
[BlackElo "2483"]
[Annotator "ChessBase"]
[PlyCount "137"]
[EventDate "2021.03.27"]
[EventType "team-tourn"]
[EventCountry "NET"]
[SourceTitle "playchess.com"]
[Source "ChessBase"]
[SourceQuality "1"]
[TimeControl "900+5"]

1. d4 {[%emt 0:00:00]} d5 {[%emt 0:00:09]} 2. Nf3 {[%emt 0:00:05]} Nf6 {[%emt 0:00:04]} 3. c4 {[%emt 0:00:09]} c6 {[%emt 0:00:03]} 4. Nc3 {[%emt 0:00:04]} e6 {[%emt 0:00:06]} 5. Bg5 {[%emt 0:00:04]} h6 {[%emt 0:00:10]} 6. Bh4 {[%emt 0:00:19]} Nbd7 {[%emt 0:00:15]} 7. e3 {[%emt 0:00:10]} Bb4 {[%emt 0:00:04]} 8. Qc2 {[%emt 0:00:12]} Qa5 {[%emt 0:00:11]} 9. Nd2 {[%emt 0:00:34]} Ne4 {[%emt 0:03:27]} 10. Ndxe4 {[%emt 0:01:12]} dxe4 {[%emt 0:00:04]} 11. Be2 {[%emt 0:00:09]} O-O {[%emt 0:00:18]} 12. O-O {[%emt 0:00:06]} f5 {[%emt 0:00:21]} 13. f3 {[%emt 0:01:10]} exf3 {[%emt 0:00:10]} 14. Rxf3 {[%emt 0:00:41]} Nf6 {[%emt 0:00:08]} 15. Raf1 {[%emt 0:00:47]} e5 {[%emt 0:01:46]} 16. c5 {[%emt 0:01:38]} Bxc3 {[%emt 0:00:59]} 17. bxc3 {[%emt 0:00:42]} e4 {[%emt 0:02:30]} 18. R3f2 {[%emt 0:00:57]} Be6 {[%emt 0:02:01]} 19. c4 {[%emt 0:00:32]} Qa3 {[%emt 0:00:21]} 20. Qd2 {[%emt 0:00:52]} b6 {[%emt 0:00:28]} 21. Bxf6 {[%emt 0:01:30]} Rxf6 {[%emt 0:00:05]} 22. d5 {[%emt 0:00:03]} Rd8 {[%emt 0:00:23]} 23. cxb6 {[%emt 0:00:07]} axb6 {[%emt 0:00:04]} 24. g4 {[%emt 0:01:26]} cxd5 {[%emt 0:00:36]} 25. gxf5 {[%emt 0:00:07]} Bf7 {[%emt 0:00:02]} 26. Rb1 {[%emt 0:00:33]} Qe7 {[%emt 0:00:28]} 27. cxd5 {[%emt 0:00:37]} Rxd5 {[%emt 0:00:06]} 28. Qc3 {[%emt 0:00:13]} Kh7 {[%emt 0:00:17]} 29. Rbf1 {[%emt 0:00:16]} Qc5 {[%emt 0:00:07]} 30. Qxc5 {[%emt 0:00:04]} Rxc5 {[%emt 0:00:03]} 31. Bg4 {[%emt 0:00:08]} Rc3 {[%emt 0:00:09]} 32. Re1 {[%emt 0:00:05]} Bc4 {[%emt 0:00:15]} 33. Rb1 {[%emt 0:00:14]} Rxe3 {[%emt 0:00:16]} 34. Rfb2 {[%emt 0:00:05]} b5 {[%emt 0:00:03]} 35. Rb4 {[%emt 0:00:07]} Ra3 {[%emt 0:00:04]} 36. R1b2 {[%emt 0:00:07]} e3 {[%emt 0:00:10]} 37. Bf3 {[%emt 0:00:18]} h5 {[%emt 0:00:06]} 38. Be2 {[%emt 0:00:18]} Bxe2 {[%emt 0:00:06]} 39. Rxe2 {[%emt 0:00:02]} Rxf5 {[%emt 0:00:02]} 40. Re4 {[%emt 0:00:04]} Rf2 {[%emt 0:00:44]} 41. R4xe3 {[%emt 0:00:12]} Rxe2 {[%emt 0:00:02]} 42. Rxe2 {[%emt 0:00:05]} g6 {[%emt 0:00:05]} 43. Rb2 {[%emt 0:00:03]} Ra5 {[%emt 0:00:02]} 44. Kg2 {[%emt 0:00:03]} Kg7 {[%emt 0:00:02]} 45. Kg3 {[%emt 0:00:05]} Kf6 {[%emt 0:00:02]} 46. h3 {[%emt 0:00:05]} Ke5 {[%emt 0:00:03]} 47. Kh4 {[%emt 0:00:05]} Kd4 {[%emt 0:00:09]} 48. Kg5 {[%emt 0:00:03]} Kc3 {[%emt 0:00:01]} 49. Rg2 {[%emt 0:00:05]} Ra6 {[%emt 0:00:10]} 50. h4 {[%emt 0:00:02]} b4 {[%emt 0:00:02]} 51. Kh6 {[%emt 0:00:05]} Kc4 {[%emt 0:00:12]} 52. Rxg6 {[%emt 0:00:03]} Rxa2 {[%emt 0:00:04]} 53. Kxh5 {[%emt 0:00:05]} Ra5+ {[%emt 0:00:01]} 54. Kh6 {[%emt 0:00:18]} b3 {[%emt 0:00:03]} 55. Rg4+ {[%emt 0:00:03]} Kc3 {[%emt 0:00:03]} 56. Rg3+ {[%emt 0:00:03]} Kb4 {[%emt 0:00:03]} 57. Rxb3+ {[%emt 0:00:02]} Kxb3 {[%emt 0:00:01]} 58. h5 {[%emt 0:00:02]} Kc4 {[%emt 0:00:05]} 59. Kg6 {[%emt 0:00:03]} Kd5 {[%emt 0:00:11]} 60. h6 {[%emt 0:00:02]} Ra6+ {[%emt 0:00:02]} 61. Kg7 {[%emt 0:00:02]} Ra7+ {[%emt 0:00:02]} 62. Kg8 {[%emt 0:00:03]} Ra8+ {[%emt 0:00:43]} 63. Kg7 {[%emt 0:00:03]} Ra7+ {[%emt 0:00:01]} 64. Kg8 {[%emt 0:00:03]} Ke6 {[%emt 0:00:02]} 65. h7 {[%emt 0:00:04]} Ra8+ {[%emt 0:00:05]} 66. Kg7 {[%emt 0:00:03]} Ra7+ {[%emt 0:00:01]} 67. Kg8 {[%emt 0:00:02]} Ra8+ {[%emt 0:00:07]} 68. Kg7 {[%emt 0:00:03]} Ra7+ {[%emt 0:00:02]} 69. Kg8 {[%emt 0:00:02]} 1/2-1/2

[Event "European Online Club-ch-E 2021"]
[Site "Online"]
[Date "2021.03.27"]
[Round "7.3"]
[White "Garrido Dominguez, Jesus"]
[Black "Lejeune, Gael"]
[Result "1/2-1/2"]
[ECO "B01"]
[WhiteElo "2413"]
[BlackElo "2070"]
[Annotator "NA"]
[PlyCount "144"]
[EventDate "2021.03.27"]
[EventType "team-tourn"]
[EventCountry "NET"]
[SourceTitle "playchess.com"]
[Source "ChessBase"]
[SourceQuality "1"]
[TimeControl "900+5"]

1. e4 {[%emt 0:00:00]} d5 {[%emt 0:00:03]} 2. exd5 {[%emt 0:00:03]} Qxd5 {[%emt 0:00:00]} 3. Nc3 {[%emt 0:00:02]} Qd8 {[%emt 0:00:02]} 4. Bc4 {[%emt 0:00:01]} Nf6 {[%emt 0:00:02]} 5. d3 {[%emt 0:00:01]} Bf5 {[%emt 0:00:32]} 6. Nge2 {[%emt 0:00:04]} e6 {[%emt 0:00:02]} 7. Ng3 {[%emt 0:00:12]} Bg6 {[%emt 0:00:03]} 8. O-O {[%emt 0:00:02]} Be7 {[%emt 0:00:10]} 9. f4 {[%emt 0:00:02]} c6 {[%emt 0:00:04]} 10. f5 {[%emt 0:00:02]} exf5 {[%emt 0:00:04]} 11. Nxf5 {[%emt 0:00:02]} Bxf5 {[%emt 0:00:04]} 12. Rxf5 {[%emt 0:00:02]} Nbd7 {[%emt 0:00:06]} 13. Qf3 {[%emt 0:00:08]} O-O {[%emt 0:01:16]} 14. a4 {[%emt 0:00:12]} g6 {[%emt 0:00:20]} 15. Rf4 {[%emt 0:00:03]} Ne5 {[%emt 0:00:05]} 16. Qf2 {[%emt 0:00:14]} Nxc4 {[%emt 0:00:02]} 17. Rxc4 {[%emt 0:00:02]} Nd5 {[%emt 0:00:14]} 18. Bh6 {[%emt 0:00:03]} Re8 {[%emt 0:00:07]} 19. Rf1 {[%emt 0:00:03]} f5 {[%emt 0:00:08]} 20. Qg3 {[%emt 0:00:53]} Nxc3 {[%emt 0:00:24]} 21. bxc3 {[%emt 0:00:15]} Bd6 {[%emt 0:00:12]} 22. Qh3 {[%emt 0:00:10]} Qb6+ {[%emt 0:00:17]} 23. Kh1 {[%emt 0:00:03]} Re2 {[%emt 0:00:17]} 24. Rd4 {[%emt 0:00:25]} Be5 {[%emt 0:00:15]} 25. Rd7 {[%emt 0:00:05]} Qf2 {[%emt 0:00:13]} 26. g3 {[%emt 0:01:06]} Re1 {[%emt 0:00:06]} 27. Rxe1 {[%emt 0:00:01]} Qxe1+ {[%emt 0:00:01]} 28. Kg2 {[%emt 0:00:01]} Qe2+ {[%emt 0:00:04]} 29. Kg1 {[%emt 0:00:03]} Qxc2 {[%emt 0:00:43]} 30. d4 {[%emt 0:00:50]} Bf6 {[%emt 0:00:19]} 31. Be3 {[%emt 0:01:24]} Qd1+ {[%emt 0:00:55]} 32. Qf1 {[%emt 0:00:03]} Qxf1+ {[%emt 0:00:03]} 33. Kxf1 {[%emt 0:00:03]} Re8 {[%emt 0:00:03]} 34. Bh6 {[%emt 0:00:13]} Re7 {[%emt 0:00:12]} 35. Rd8+ {[%emt 0:00:39]} Kf7 {[%emt 0:00:03]} 36. Rb8 {[%emt 0:00:08]} c5 {[%emt 0:01:34]} 37. dxc5 {[%emt 0:00:33]} Bxc3 {[%emt 0:00:06]} 38. Bf4 {[%emt 0:00:03]} Bd4 {[%emt 0:00:40]} 39. Bd6 {[%emt 0:00:10]} Rd7 {[%emt 0:00:03]} 40. Ke2 {[%emt 0:01:34]} Ke6 {[%emt 0:00:03]} 41. Bf8 {[%emt 0:00:21]} Kd5 {[%emt 0:00:09]} 42. Rc8 {[%emt 0:00:03]} g5 {[%emt 0:00:34]} 43. Kf3 {[%emt 0:00:05]} h5 {[%emt 0:02:20]} 44. Bd6 {[%emt 0:00:46]} Rf7 {[%emt 0:01:20]} 45. h4 {[%emt 0:00:30]} gxh4 {[%emt 0:00:11]} 46. gxh4 {[%emt 0:00:01]} Be5 {[%emt 0:00:12]} 47. Bxe5 {[%emt 0:00:29]} Kxe5 {[%emt 0:00:00]} 48. c6 {[%emt 0:00:02]} bxc6 {[%emt 0:00:02]} 49. Rxc6 {[%emt 0:00:03]} Rb7 {[%emt 0:00:12]} 50. Rc5+ {[%emt 0:00:02]} Kf6 {[%emt 0:00:05]} 51. Rc6+ {[%emt 0:00:01]} Ke5 {[%emt 0:00:02]} 52. Rc5+ {[%emt 0:00:03]} Kf6 {[%emt 0:00:01]} 53. Ra5 {[%emt 0:00:42]} Rb3+ {[%emt 0:00:05]} 54. Kf2 {[%emt 0:00:04]} Rb2+ {[%emt 0:00:05]} 55. Kf3 {[%emt 0:00:04]} Rb3+ {[%emt 0:00:02]} 56. Ke2 {[%emt 0:00:21]} Rh3 {[%emt 0:00:05]} 57. Rxa7 {[%emt 0:00:01]} Rxh4 {[%emt 0:00:02]} 58. a5 {[%emt 0:00:04]} Rh3 {[%emt 0:00:04]} 59. a6 {[%emt 0:00:03]} Kg5 {[%emt 0:00:03]} 60. Rh7 {[%emt 0:01:05]} Ra3 {[%emt 0:00:04]} 61. a7 {[%emt 0:00:02]} Kg4 {[%emt 0:00:02]} 62. Kf2 {[%emt 0:00:04]} h4 {[%emt 0:00:03]} 63. Kg2 {[%emt 0:00:04]} Ra2+ {[%emt 0:00:04]} 64. Kg1 {[%emt 0:00:05]} f4 {[%emt 0:00:05]} 65. Rg7+ {[%emt 0:00:03]} Kf3 {[%emt 0:00:04]} 66. Rh7 {[%emt 0:00:02]} Kg3 {[%emt 0:00:01]} 67. Rg7+ {[%emt 0:00:01]} Kf3 {[%emt 0:00:20]} 68. Kh1 {[%emt 0:00:04]} h3 {[%emt 0:00:03]} 69. Rh7 {[%emt 0:00:08]} Kg3 {[%emt 0:00:04]} 70. Rg7+ {[%emt 0:00:02]} Kf3 {[%emt 0:00:02]} 71. Rh7 {[%emt 0:00:01]} Kg3 {[%emt 0:00:02]} 72. Rg7+ {[%emt 0:00:01]} Kf3 {[%emt 0:00:02]} 1/2-1/2

[Event "European Online Club-ch-E 2021"]
[Site "Online"]
[Date "2021.03.27"]
[Round "7.4"]
[White "Thereze, Ludovic"]
[Black "Yashas, D.."]
[Result "0-1"]
[ECO "E21"]
[WhiteElo "2007"]
[BlackElo "2296"]
[Annotator "NA"]
[PlyCount "92"]
[EventDate "2021.03.27"]
[EventType "team-tourn"]
[EventCountry "NET"]
[SourceTitle "playchess.com"]
[Source "ChessBase"]
[SourceQuality "1"]
[TimeControl "900+5"]

1. d4 {[%emt 0:00:00]} Nf6 {[%emt 0:00:04]} 2. c4 {[%emt 0:00:03]} e6 {[%emt 0:00:02]} 3. Nc3 {[%emt 0:00:03]} Bb4 {[%emt 0:00:11]} 4. Bd2 {[%emt 0:00:03]} b6 {[%emt 0:00:08]} 5. g3 {[%emt 0:00:05]} Bb7 {[%emt 0:00:02]} 6. Nf3 {[%emt 0:00:01]} c5 {[%emt 0:00:07]} 7. a3 {[%emt 0:00:35]} Bxc3 {[%emt 0:00:07]} 8. Bxc3 {[%emt 0:00:18]} O-O {[%emt 0:00:05]} 9. Bg2 {[%emt 0:00:14]} Ne4 {[%emt 0:00:02]} 10. O-O {[%emt 0:00:09]} Nxc3 {[%emt 0:00:04]} 11. bxc3 {[%emt 0:00:04]} Qc7 {[%emt 0:00:07]} 12. d5 {[%emt 0:00:27]} d6 {[%emt 0:00:13]} 13. Qd3 {[%emt 0:01:09]} e5 {[%emt 0:00:43]} 14. Ng5 {[%emt 0:01:08]} g6 {[%emt 0:00:04]} 15. Qe4 {[%emt 0:01:48]} h6 {[%emt 0:01:00]} 16. Ne6 {[%emt 0:01:16]} fxe6 {[%emt 0:00:04]} 17. Qxg6+ {[%emt 0:00:02]} Qg7 {[%emt 0:00:02]} 18. Qxe6+ {[%emt 0:00:02]} Kh8 {[%emt 0:00:03]} 19. Qxd6 {[%emt 0:00:10]} Nd7 {[%emt 0:00:33]} 20. Bh3 {[%emt 0:00:45]} Rad8 {[%emt 0:00:05]} 21. Qc7 {[%emt 0:00:54]} Nb8 {[%emt 0:00:04]} 22. Qxg7+ {[%emt 0:00:29]} Kxg7 {[%emt 0:00:03]} 23. f4 {[%emt 0:00:34]} e4 {[%emt 0:01:58]} 24. Bg2 {[%emt 0:00:26]} Ba6 {[%emt 0:03:59]} 25. Bxe4 {[%emt 0:00:35]} Bxc4 {[%emt 0:00:04]} 26. Rfd1 {[%emt 0:00:14]} Bxe2 {[%emt 0:00:05]} 27. Rd2 {[%emt 0:00:02]} Bg4 {[%emt 0:01:29]} 28. Re1 {[%emt 0:00:18]} Rfe8 {[%emt 0:00:09]} 29. Kf2 {[%emt 0:00:33]} Nd7 {[%emt 0:00:07]} 30. d6 {[%emt 0:01:09]} Nf6 {[%emt 0:00:08]} 31. Bc6 {[%emt 0:00:04]} Rxe1 {[%emt 0:00:04]} 32. Kxe1 {[%emt 0:00:02]} Bd7 {[%emt 0:00:07]} 33. Bg2 {[%emt 0:01:11]} Re8+ {[%emt 0:00:03]} 34. Kd1 {[%emt 0:00:37]} Bg4+ {[%emt 0:01:08]} 35. Kc2 {[%emt 0:00:40]} Re2 {[%emt 0:00:04]} 36. Bc6 {[%emt 0:00:53]} Rxd2+ {[%emt 0:00:05]} 37. Kxd2 {[%emt 0:00:03]} Kf7 {[%emt 0:00:03]} 38. Kd3 {[%emt 0:00:12]} Ke6 {[%emt 0:00:03]} 39. Bg2 {[%emt 0:00:39]} Kxd6 {[%emt 0:00:05]} 40. Kc4 {[%emt 0:00:02]} Be2+ {[%emt 0:00:06]} 41. Kb3 {[%emt 0:00:04]} b5 {[%emt 0:00:19]} 42. a4 {[%emt 0:00:06]} Bd1+ {[%emt 0:00:08]} 43. Ka3 {[%emt 0:00:10]} Bxa4 {[%emt 0:00:02]} 44. c4 {[%emt 0:00:05]} a6 {[%emt 0:00:06]} 45. Bf1 {[%emt 0:00:06]} Kc6 {[%emt 0:00:12]} 46. h3 {[%emt 0:00:03]} Nh5 {[%emt 0:00:28]} 0-1

[Event "European Online Club-ch-E 2021"]
[Site "Online"]
[Date "2021.03.27"]
[Round "7.5"]
[White "Westerberg, Jonathan"]
[Black "Mikhalevski, Victor"]
[Result "0-1"]
[ECO "C54"]
[WhiteElo "2534"]
[BlackElo "2552"]
[Annotator "ChessBase"]
[PlyCount "48"]
[EventDate "2021.03.27"]
[EventType "team-tourn"]
[EventCountry "NET"]
[SourceTitle "playchess.com"]
[Source "ChessBase"]
[SourceQuality "1"]
[TimeControl "900+5"]

1. e4 {[%emt 0:00:00]} e5 {[%emt 0:00:05]} 2. Nf3 {[%emt 0:00:02]} Nc6 {[%emt 0:00:02]} 3. Bc4 {[%emt 0:00:02]} Bc5 {[%emt 0:00:02]} 4. c3 {[%emt 0:00:02]} Nf6 {[%emt 0:00:02]} 5. Qe2 {[%emt 0:00:01]} O-O {[%emt 0:00:17]} 6. Bb3 {[%emt 0:00:02]} d5 {[%emt 0:01:13]} 7. d3 {[%emt 0:00:02]} h6 {[%emt 0:00:04]} 8. Nbd2 {[%emt 0:00:13]} Re8 {[%emt 0:00:39]} 9. h3 {[%emt 0:00:01]} Nh5 {[%emt 0:01:23]} 10. g3 {[%emt 0:00:34]} Be6 {[%emt 0:01:00]} 11. Nf1 {[%emt 0:04:41]} f5 {[%emt 0:02:35]} 12. Be3 {[%emt 0:01:00]} d4 {[%emt 0:01:30]} 13. Bxe6+ {[%emt 0:01:32]} Rxe6 {[%emt 0:00:03]} 14. Bd2 {[%emt 0:00:31]} fxe4 {[%emt 0:00:24]} 15. dxe4 {[%emt 0:01:51]} d3 {[%emt 0:00:36]} 16. Qd1 {[%emt 0:00:03]} Qf6 {[%emt 0:00:35]} 17. N1h2 {[%emt 0:00:34]} Qg6 {[%emt 0:00:11]} 18. Qa4 {[%emt 0:01:23]} b5 {[%emt 0:00:18]} 19. Qxb5 {[%emt 0:00:03]} Qxe4+ {[%emt 0:00:03]} 20. Kd1 {[%emt 0:00:03]} Bxf2 {[%emt 0:00:12]} 21. Qb3 {[%emt 0:00:26]} Rae8 {[%emt 0:00:09]} 22. Rf1 {[%emt 0:00:44]} Qe2+ {[%emt 0:00:05]} 23. Kc1 {[%emt 0:00:01]} Nxg3 {[%emt 0:00:02]} 24. Rd1 {[%emt 0:00:01]} e4 {[%emt 0:00:16]} 0-1

[Event "European Online Club-ch-E 2021"]
[Site "Online"]
[Date "2021.03.27"]
[Round "7.6"]
[White "Roiz, Michael"]
[Black "Arman, Deniz"]
[Result "1/2-1/2"]
[ECO "D76"]
[WhiteElo "2579"]
[BlackElo "2336"]
[Annotator "ChessBase"]
[PlyCount "78"]
[EventDate "2021.03.27"]
[EventType "team-tourn"]
[EventCountry "NET"]
[SourceTitle "playchess.com"]
[Source "ChessBase"]
[SourceQuality "1"]
[TimeControl "900+5"]

1. d4 {[%emt 0:00:00]} Nf6 {[%emt 0:00:06]} 2. c4 {[%emt 0:00:21]} g6 {[%emt 0:00:13]} 3. g3 {[%emt 0:00:06]} Bg7 {[%emt 0:00:04]} 4. Bg2 {[%emt 0:00:02]} d5 {[%emt 0:00:13]} 5. cxd5 {[%emt 0:00:07]} Nxd5 {[%emt 0:00:03]} 6. Nf3 {[%emt 0:00:04]} O-O {[%emt 0:00:04]} 7. O-O {[%emt 0:00:02]} Nb6 {[%emt 0:00:02]} 8. Nc3 {[%emt 0:00:04]} Nc6 {[%emt 0:00:01]} 9. e3 {[%emt 0:00:02]} e5 {[%emt 0:00:08]} 10. d5 {[%emt 0:00:04]} e4 {[%emt 0:00:02]} 11. dxc6 {[%emt 0:00:25]} Qxd1 {[%emt 0:00:02]} 12. Rxd1 {[%emt 0:00:08]} exf3 {[%emt 0:00:02]} 13. Bxf3 {[%emt 0:00:01]} bxc6 {[%emt 0:00:01]} 14. Bd2 {[%emt 0:03:16]} Nc4 {[%emt 0:00:13]} 15. Na4 {[%emt 0:00:01]} Rb8 {[%emt 0:00:28]} 16. Bc3 {[%emt 0:01:38]} Bxc3 {[%emt 0:00:05]} 17. bxc3 {[%emt 0:00:02]} Ne5 {[%emt 0:00:05]} 18. Be2 {[%emt 0:00:26]} Bf5 {[%emt 0:01:28]} 19. Rd4 {[%emt 0:03:50]} h5 {[%emt 0:06:09]} 20. f3 {[%emt 0:01:45]} Bc2 {[%emt 0:03:48]} 21. Nc5 {[%emt 0:01:56]} Rb2 {[%emt 0:00:39]} 22. Rd2 {[%emt 0:00:04]} Rfb8 {[%emt 0:00:07]} 23. Kf1 {[%emt 0:01:13]} Bb1 {[%emt 0:00:26]} 24. Rxb2 {[%emt 0:00:07]} Rxb2 {[%emt 0:00:04]} 25. Na4 {[%emt 0:00:14]} Rxa2 {[%emt 0:00:08]} 26. Rxb1 {[%emt 0:00:03]} Rxa4 {[%emt 0:00:03]} 27. Rb7 {[%emt 0:00:05]} Ra1+ {[%emt 0:00:21]} 28. Kf2 {[%emt 0:00:02]} Ra2 {[%emt 0:00:02]} 29. e4 {[%emt 0:00:24]} Rc2 {[%emt 0:01:40]} 30. Rxa7 {[%emt 0:00:07]} Rxc3 {[%emt 0:00:11]} 31. Rxc7 {[%emt 0:00:02]} Rc2 {[%emt 0:00:11]} 32. Ke3 {[%emt 0:00:38]} Nc4+ {[%emt 0:00:16]} 33. Kf2 {[%emt 0:00:10]} Ne5 {[%emt 0:00:09]} 34. h3 {[%emt 0:00:05]} g5 {[%emt 0:00:05]} 35. f4 {[%emt 0:00:15]} gxf4 {[%emt 0:00:02]} 36. gxf4 {[%emt 0:00:01]} Ng6 {[%emt 0:00:02]} 37. Ke3 {[%emt 0:00:06]} Nxf4 {[%emt 0:00:04]} 38. Kxf4 {[%emt 0:00:02]} Rxe2 {[%emt 0:00:02]} 39. Rxc6 {[%emt 0:00:01]} Kg7 {[%emt 0:00:11]} 1/2-1/2

[Event "European Online Club-ch-E 2021"]
[Site "Online"]
[Date "2021.03.27"]
[Round "7.7"]
[White "Cederstam Barsk, Carl"]
[Black "Steinberg, Nitzan"]
[Result "0-1"]
[ECO "B52"]
[WhiteElo "2366"]
[BlackElo "2553"]
[Annotator "ChessBase"]
[PlyCount "76"]
[EventDate "2021.03.27"]
[EventType "team-tourn"]
[EventCountry "NET"]
[SourceTitle "playchess.com"]
[Source "ChessBase"]
[SourceQuality "1"]
[TimeControl "900+5"]

1. e4 {[%emt 0:00:00]} c5 {[%emt 0:00:04]} 2. Nf3 {[%emt 0:00:02]} d6 {[%emt 0:00:02]} 3. Bb5+ {[%emt 0:00:02]} Bd7 {[%emt 0:00:03]} 4. Bxd7+ {[%emt 0:00:03]} Nxd7 {[%emt 0:00:02]} 5. O-O {[%emt 0:00:07]} Ngf6 {[%emt 0:00:02]} 6. Re1 {[%emt 0:00:04]} g6 {[%emt 0:00:03]} 7. c3 {[%emt 0:00:48]} Bg7 {[%emt 0:00:02]} 8. d4 {[%emt 0:00:44]} O-O {[%emt 0:00:02]} 9. Nbd2 {[%emt 0:03:24]} cxd4 {[%emt 0:01:19]} 10. cxd4 {[%emt 0:00:07]} Rc8 {[%emt 0:00:05]} 11. Qb3 {[%emt 0:01:19]} Qb6 {[%emt 0:00:25]} 12. Qd3 {[%emt 0:01:36]} Qc6 {[%emt 0:01:15]} 13. b3 {[%emt 0:00:36]} Qc2 {[%emt 0:00:39]} 14. Qe2 {[%emt 0:00:40]} Nh5 {[%emt 0:01:02]} 15. Ba3 {[%emt 0:01:28]} Nf4 {[%emt 0:00:22]} 16. Qb5 {[%emt 0:00:05]} Qc6 {[%emt 0:02:00]} 17. Qf1 {[%emt 0:00:26]} b5 {[%emt 0:00:45]} 18. g3 {[%emt 0:00:15]} Nh5 {[%emt 0:00:02]} 19. Rec1 {[%emt 0:01:19]} Qb7 {[%emt 0:00:17]} 20. Bb4 {[%emt 0:00:14]} Nhf6 {[%emt 0:01:02]} 21. Qd3 {[%emt 0:00:21]} Bh6 {[%emt 0:00:09]} 22. d5 {[%emt 0:00:37]} Bg7 {[%emt 0:01:13]} 23. h3 {[%emt 0:00:58]} Qb6 {[%emt 0:00:35]} 24. Bc3 {[%emt 0:00:47]} Nc5 {[%emt 0:02:30]} 25. Qd4 {[%emt 0:00:10]} Ncxe4 {[%emt 0:00:48]} 26. Nxe4 {[%emt 0:00:10]} Qxd4 {[%emt 0:00:03]} 27. Nxf6+ {[%emt 0:00:09]} Qxf6 {[%emt 0:00:03]} 28. Bxf6 {[%emt 0:00:04]} Bxf6 {[%emt 0:00:02]} 29. Rab1 {[%emt 0:00:12]} Bc3 {[%emt 0:00:13]} 30. Rc2 {[%emt 0:00:07]} Rc5 {[%emt 0:00:11]} 31. Rd1 {[%emt 0:00:03]} Rfc8 {[%emt 0:00:06]} 32. Re2 {[%emt 0:00:17]} Bf6 {[%emt 0:00:09]} 33. Rdd2 {[%emt 0:00:09]} b4 {[%emt 0:00:16]} 34. Kg2 {[%emt 0:00:03]} Ra5 {[%emt 0:00:11]} 35. g4 {[%emt 0:00:18]} h6 {[%emt 0:00:02]} 36. h4 {[%emt 0:00:02]} g5 {[%emt 0:00:06]} 37. hxg5 {[%emt 0:00:02]} hxg5 {[%emt 0:00:02]} 38. Rd1 {[%emt 0:00:09]} Rcc5 {[%emt 0:00:03]} 0-1